fUSD/lending_fUSD_20240107
["ID","MTS","AMOUNT","RATE_DAILY","PERIOD"]
[310669655,1704639119940,-221.92467189,0.00022566,2]
[310669656,1704639119950,-501.82468153,0.00022566,2]
[310669657,1704639120148,-500.0,0.00022566,2]
[310669658,1704639120159,-502.07090131,0.00022566,2]
[310669659,1704639120169,-501.1540169,0.00022566,2]
[310669660,1704639120179,-501.88331475,0.00022566,2]
[310669661,1704639120188,-502.89264162,0.00022566,2]
[310669662,1704639120198,-502.73364678,0.00022566,2]
[310669663,1704639120208,-362.8687766,0.00022566,2]
[310669664,1704639120218,-502.64004644,0.00022566,2]
[310669665,1704639120227,-500.0,0.00022566,2]
[310669666,1704639120237,-507.80091907,0.00022566,2]
[310669667,1704639120247,-500.0,0.00022566,2]
[310669668,1704639120258,-155.29092347,0.00022566,2]
[310669669,1704639120267,-500.0,0.00022566,2]
[310669670,1704639120277,-500.0,0.00022566,2]
[310669671,1704639120286,-1000.0,0.00022566,2]
[310669672,1704639120296,-500.0,0.00022566,2]
[310669673,1704639120306,-500.0,0.00022566,2]
[310669674,1704639120315,-500.0,0.00022566,2]
[310669675,1704639120325,-500.0,0.00022566,2]
[310669676,1704639120335,-500.0,0.00022566,2]
[310669677,1704639120345,-503.33914541,0.00022566,2]
[310669678,1704639120357,-500.0,0.00022566,2]
[310669679,1704639120368,-500.0,0.00022566,2]
[310669680,1704639120377,-500.0,0.00022566,2]
[310669681,1704639120387,-500.0,0.00022566,2]
[310669682,1704639120396,-502.87857579,0.00022566,2]
[310669683,1704639120406,-480.92786736,0.00022566,2]
[310669684,1704639120416,-500.0,0.00022566,2]
[310669685,1704639120425,-526.97363565,0.00022566,2]
[310669686,1704639120436,-273.78958524,0.00022566,2]
[310669687,1704639120445,-500.0,0.00022566,2]
[310669688,1704639120455,-500.0,0.00022566,2]
[310669689,1704639120465,-500.0,0.00022566,2]
[310669690,1704639120474,-500.0,0.00022566,2]
[310669691,1704639120483,-313.48520681,0.00022566,2]
[310669692,1704639120493,-501.85605925,0.00022566,2]
[310669693,1704639120502,-500.0,0.00022566,2]
[310669694,1704639120512,-516.50671195,0.00022566,2]
[310669695,1704639120521,-500.0,0.00022566,2]
[310669696,1704639120530,-500.0,0.00022566,2]
[310669697,1704639120540,-500.0,0.00022566,2]
[310669698,1704639120549,-500.0,0.00022566,2]
[310669699,1704639120559,-501.56427204,0.00022566,2]
[310669700,1704639120569,-500.0,0.00022566,2]
[310669701,1704639120578,-500.0,0.00022566,2]
[310669702,1704639120587,-500.0,0.00022566,2]
[310669703,1704639120598,-500.0,0.00022566,2]
[310669704,1704639120608,-500.0,0.00022566,2]
[310669705,1704639120617,-548.84915426,0.00022566,2]
[310669706,1704639120627,-500.0,0.00022566,2]
[310669707,1704639120637,-151.70484157,0.00022566,2]
[310669708,1704639120647,-500.0,0.00022566,2]
[310669709,1704639120656,-500.0,0.00022566,2]
[310669710,1704639120666,-352.13927865,0.00022566,2]
[310669711,1704639120676,-418.42424688,0.00022566,2]
[310669712,1704639120685,-512.73037898,0.00022566,2]
[310669713,1704639120694,-503.89773055,0.00022566,2]
[310669714,1704639120704,-500.0,0.00022566,2]
[310669715,1704639120713,-504.77266155,0.00022566,2]
[310669716,1704639120723,-155.0,0.0002261,2]
[310669717,1704639120732,-622.98,0.00022664,2]
[310669718,1704639120742,-500.0,0.00022664,2]
[310669719,1704639120751,-666.53,0.00022664,2]
[310669720,1704639120761,-500.0,0.00022664,2]
[310669721,1704639120770,-500.0,0.00022664,2]
[310669722,1704639120780,-500.0,0.00022664,2]
[310669723,1704639120789,-500.0,0.00022664,2]
[310669724,1704639120799,-500.0,0.00022664,2]
[310669725,1704639120808,-401.84,0.00022664,2]
[310669726,1704639120818,-500.0,0.00022664,2]
[310669727,1704639120828,-312.43919723,0.00022664,2]
[310669728,1704639120838,-500.0,0.00022664,2]
[310669729,1704639120848,-402.03401777,0.00022664,2]
[310669730,1704639121701,-97.96598223,0.00022664,2]
[310669731,1704639121711,-500.0,0.00022664,2]
[310669732,1704639121723,-500.0,0.00022664,2]
[310669733,1704639121733,-500.0,0.00022664,2]
[310669734,1704639121746,-500.0,0.00022664,2]
[310669735,1704639121757,-500.0,0.00022664,2]
[310669736,1704639121767,-500.0,0.00022664,2]
[310669737,1704639121777,-500.0,0.00022664,2]
[310669738,1704639121787,-500.0,0.00022664,2]
[310669739,1704639121797,-500.0,0.00022664,2]
[310669740,1704639121807,-500.0,0.00022664,2]
[310669741,1704639121817,-500.0,0.00022664,2]
[310669742,1704639121827,-500.0,0.00022664,2]
[310669743,1704639121837,-500.0,0.00022664,2]
[310669744,1704639121848,-500.0,0.00022664,2]
[310669745,1704639121861,-500.0,0.00022664,2]
[310669746,1704639121872,-500.0,0.00022664,2]
[310669747,1704639121882,-500.0,0.00022664,2]
[310669748,1704639121892,-500.0,0.00022664,2]
[310669749,1704639121902,-500.0,0.00022664,2]
[310669750,1704639121912,-620.58997478,0.00022664,2]
[310669751,1704639121921,-283.88,0.00022664,2]
[310669752,1704639121932,-500.0,0.00022664,2]
[310669753,1704639121942,-500.0,0.00022664,2]
[310669754,1704639121952,-500.0,0.00022664,2]
[310669755,1704639121962,-500.0,0.00022664,2]
[310669756,1704639121972,-235.63,0.00022664,2]
[310669757,1704639121982,-500.0,0.00022664,2]
[310669758,1704639121992,-500.0,0.00022664,2]
[310669759,1704639122002,-500.0,0.00022664,2]
[310669760,1704639122012,-500.0,0.00022664,2]
[310669761,1704639122022,-500.0,0.00022664,2]
[310669762,1704639122031,-500.0,0.00022664,2]
[310669763,1704639122041,-434.68,0.00022664,2]
[310669764,1704639122051,-521.23913344,0.00022664,2]
[310669765,1704639122061,-500.0,0.00022664,2]
[310669766,1704639122071,-500.0,0.00022664,2]
[310669767,1704639122081,-8599.28,0.00022664,2]
[310669768,1704639122091,-1475.33,0.00022664,2]
[310669769,1704639122102,-354.31697812,0.00022664,2]
[310669770,1704639122112,-13487.08,0.00022664,2]
[310669771,1704639122122,-1646.81,0.00022664,2]
[310669772,1704639122131,-634.39390691,0.00022664,2]
[310669773,1704639122140,-500.0,0.00022664,2]
[310669774,1704639122150,-500.0,0.00022664,2]
[310669775,1704639122159,-5134.33,0.00022664,2]
[310669776,1704639122169,-626.25849693,0.00022664,2]
[310669777,1704639122179,-678.0,0.00022664,2]
[310669778,1704639122188,-500.0,0.00022664,2]
[310669779,1704639122198,-433.96,0.00022664,2]
[310669780,1704639122207,-500.0,0.00022664,2]
[310669781,1704639122218,-743.44,0.00022664,2]
[310669782,1704639122228,-500.0,0.00022664,2]
[310669783,1704639122238,-500.0,0.00022664,2]
[310669784,1704639122248,-500.0,0.00022664,2]
[310669785,1704639122258,-3998.43,0.00022664,2]
[310669786,1704639122267,-1271.64,0.00022664,2]
[310669787,1704639122277,-500.0,0.00022664,2]
[310669788,1704639122286,-1574.87,0.00022664,2]
[310669789,1704639122296,-923.44,0.00022664,2]
[310669790,1704639122305,-573.41,0.00022664,2]
[310669791,1704639122316,-500.0,0.00022664,2]
[310669792,1704639122325,-500.0,0.00022664,2]
[310669793,1704639122334,-500.0,0.00022664,2]
[310669794,1704639122344,-4492.96,0.00022664,2]
[310669795,1704639122356,-210.09281314,0.00022664,2]
[310669796,1704639122365,-500.0,0.00022664,2]
[310669797,1704639122376,-500.0,0.00022664,2]
[310669798,1704639122386,-1622.44,0.00022664,2]
[310669799,1704639122395,-500.0,0.00022664,2]
[310669800,1704639122405,-500.0,0.00022664,2]
[310669801,1704639122414,-500.0,0.00022664,2]
[310669802,1704639122424,-759.95,0.00022664,2]
[310669803,1704639122434,-870.33,0.00022664,2]
[310669804,1704639122443,-500.0,0.00022664,2]
[310669805,1704639122453,-555.2838537,0.00022664,2]
[310669806,1704639122463,-563.93,0.00022664,2]
[310669807,1704639122473,-4162.73,0.00022664,2]
[310669808,1704639122483,-2097.89,0.00022664,2]
[310669809,1704639122493,-1763.25,0.00022664,2]
[310669810,1704639122501,-1359.2,0.00022664,2]
[310669811,1704639122511,-589.02125171,0.00022664,2]
[310669812,1704639122520,-449.26,0.00022664,2]
[310669813,1704639122529,-1043.13,0.00022664,2]
[310669814,1704639122539,-764.9,0.00022664,2]
[310669815,1704639122549,-500.0,0.00022664,2]
[310669816,1704639122558,-1232.8,0.00022664,2]
[310669817,1704639122568,-575.35,0.00022664,2]
[310669818,1704639122577,-500.0,0.00022664,2]
[310669819,1704639122586,-2561.16,0.00022664,2]
[310669820,1704639122595,-2694.17,0.00022664,2]
[310669821,1704639122607,-5750.33,0.00022664,2]
[310669822,1704639122617,-500.0,0.00022665,2]
[310669823,1704639122627,-502.56229369,0.00022665,2]
[310669824,1704639122636,-500.0,0.00022665,2]
[310669825,1704639122646,-1001.75179953,0.00022665,2]
[310669826,1704639122655,-503.06074929,0.00022665,2]
[310669827,1704639122665,-506.53655015,0.00022665,2]
[310669828,1704639122674,-502.9761502,0.00022665,2]
[310669829,1704639122683,-512.36120182,0.00022665,2]
[310669830,1704639122692,-571.0013659,0.00022665,2]
[310669831,1704639122702,-502.98985427,0.00022665,2]
[310669832,1704639122710,-317.44560973,0.00022665,2]
[310669833,1704639122720,-502.91007542,0.00022665,2]
[310669834,1704639122729,-335.98944015,0.00022665,2]
[310669835,1704639122739,-600.25956024,0.00022665,2]
[310669836,1704639122749,-510.38723626,0.00022665,2]
[310669837,1704639122759,-527.27535902,0.00022665,2]
[310669838,1704639122769,-503.07117639,0.00022665,2]
[310669839,1704639122778,-500.0,0.00022665,2]
[310669840,1704639122787,-502.7504273,0.00022665,2]
[310669841,1704639122797,-518.52713058,0.00022665,2]
[310669842,1704639122806,-500.0,0.00022665,2]
[310669843,1704639122815,-503.11880084,0.00022665,2]
[310669844,1704639122825,-500.0,0.00022665,2]
[310669845,1704639122834,-607.32426599,0.00022665,2]
[310669846,1704639122844,-502.26200248,0.00022665,2]
[310669847,1704639122855,-503.02220576,0.00022665,2]
[310669848,1704639122865,-502.58014099,0.00022665,2]
[310669849,1704639122878,-315.65093409,0.00022665,2]
[310669850,1704639122887,-604.83207,0.00022665,2]
[310669851,1704639122897,-500.0,0.00022665,2]
[310669852,1704639122906,-500.0,0.00022665,2]
[310669853,1704639122915,-179.0670137,0.00022665,2]
[310669854,1704639122925,-500.0,0.00022665,2]
[310669855,1704639122933,-500.0,0.00022665,2]
[310669856,1704639123026,-500.0,0.00022665,2]
[310669857,1704639123035,-500.0,0.00022665,2]
[310669858,1704639123045,-500.0,0.00022665,2]
[310669859,1704639123055,-542.52,0.00022665,2]
[310669860,1704639123064,-500.0,0.00022665,2]
[310669861,1704639123073,-265.93400343,0.00022665,2]
[310669862,1704639123085,-354.14,0.00022665,2]
[310669863,1704639123094,-637.32372428,0.00022665,2]
[310669864,1704639123105,-500.0,0.00022665,2]
[310669865,1704639123115,-311.62,0.00022665,2]
[310669866,1704639123125,-500.0,0.00022665,2]
[310669867,1704639123134,-500.0,0.00022665,2]
[310669868,1704639123144,-500.0,0.00022665,2]
[310669869,1704639123154,-500.0,0.00022665,2]
[310669870,1704639123163,-918.4,0.00022665,2]
[310669871,1704639123173,-694.85,0.00022665,2]
[310669872,1704639123183,-500.0,0.00022665,2]
[310669873,1704639123192,-500.0,0.00022665,2]
[310669874,1704639123202,-500.0,0.00022665,2]
[310669875,1704639123211,-500.0,0.00022665,2]
[310669876,1704639123221,-600.37,0.00022665,2]
[310669877,1704639123230,-500.0,0.00022665,2]
[310669878,1704639123240,-605.06,0.00022665,2]
[310669879,1704639123249,-500.0,0.00022665,2]
[310669880,1704639123258,-500.0,0.00022665,2]
[310669881,1704639123268,-500.0,0.00022665,2]
[310669882,1704639123277,-316.52,0.00022665,2]
[310669883,1704639123286,-500.0,0.00022665,2]
[310669884,1704639123295,-500.0,0.00022665,2]
[310669885,1704639123305,-500.0,0.00022665,2]
[310669886,1704639123314,-500.0,0.00022665,2]
[310669887,1704639123323,-500.0,0.00022665,2]
[310669888,1704639123333,-500.0,0.00022665,2]
[310669889,1704639123342,-500.0,0.00022665,2]
[310669890,1704639123352,-500.0,0.00022665,2]
[310669891,1704639123362,-776.24,0.00022665,2]
[310669892,1704639123371,-500.0,0.00022665,2]
[310669893,1704639123380,-1247.62,0.00022665,2]
[310669894,1704639123390,-1150.88,0.00022665,2]
[310669895,1704639123399,-500.0,0.00022665,2]
[310669896,1704639123409,-500.0,0.00022665,2]
[310669897,1704639123419,-309.72087364,0.00022665,2]
[310669898,1704639123428,-500.0,0.00022665,2]
[310669899,1704639123438,-1763.25,0.00022665,2]
[310669900,1704639123449,-500.0,0.00022665,2]
[310669901,1704639123458,-514.64870877,0.00022665,2]
[310669902,1704639123468,-500.0,0.00022665,2]
[310669903,1704639123477,-500.0,0.00022665,2]
[310669904,1704639123487,-500.0,0.00022665,2]
[310669905,1704639123497,-500.0,0.00022665,2]
[310669906,1704639123507,-568.68,0.00022665,2]
[310669907,1704639123517,-500.0,0.00022665,2]
[310669908,1704639123526,-500.0,0.00022665,2]
[310669909,1704639123535,-500.0,0.00022665,2]
[310669910,1704639123545,-500.0,0.00022665,2]
[310669911,1704639123554,-500.0,0.00022665,2]
[310669912,1704639123564,-500.0,0.00022665,2]
[310669913,1704639123573,-500.0,0.00022665,2]
[310669914,1704639123582,-500.0,0.00022665,2]
[310669915,1704639123592,-500.0,0.00022665,2]
[310669916,1704639123601,-500.0,0.00022665,2]
[310669917,1704639123610,-500.96,0.00022665,2]
[310669918,1704639123620,-301.96911282,0.00022665,2]
[310669919,1704639123628,-500.0,0.00022665,2]
[310669920,1704639123638,-500.0,0.00022665,2]
[310669921,1704639123647,-500.0,0.00022665,2]
[310669922,1704639123656,-500.0,0.00022665,2]
[310669923,1704639123666,-500.0,0.00022665,2]
[310669924,1704639123675,-500.0,0.00022665,2]
[310669925,1704639123686,-500.0,0.00022665,2]
[310669926,1704639123694,-500.0,0.00022665,2]
[310669927,1704639123704,-500.0,0.00022665,2]
[310669928,1704639123713,-500.0,0.00022665,2]
[310669929,1704639123722,-500.0,0.00022665,2]
[310669930,1704639123732,-500.0,0.00022665,2]
[310669931,1704639123742,-500.0,0.00022665,2]
[310669932,1704639123751,-507.03,0.00022665,2]
[310669933,1704639123761,-500.0,0.00022665,2]
[310669934,1704639123770,-500.0,0.00022665,2]
[310669935,1704639123780,-500.0,0.00022665,2]
[310669936,1704639123790,-500.0,0.00022665,2]
[310669937,1704639123799,-339.40111063,0.00022665,2]
[310669938,1704639123809,-376.77,0.00022665,2]
[310669939,1704639123819,-500.0,0.00022665,2]
[310669940,1704639123829,-500.0,0.00022665,2]
[310669941,1704639123839,-500.0,0.00022665,2]
[310669942,1704639123848,-500.0,0.00022665,2]
[310669943,1704639123858,-500.0,0.00022665,2]
[310669944,1704639123868,-500.0,0.00022665,2]
[310669945,1704639123881,-1481.4,0.00022665,2]
[310669946,1704639123891,-500.0,0.00022665,2]
[310669947,1704639123901,-500.0,0.00022665,2]
[310669948,1704639123910,-500.0,0.00022665,2]
[310669949,1704639123920,-500.0,0.00022665,2]
[310669950,1704639123930,-500.0,0.00022665,2]
[310669951,1704639123939,-794.98,0.00022665,2]
[310669952,1704639123949,-405.86,0.00022665,2]
[310669953,1704639123958,-500.0,0.00022665,2]
[310669954,1704639123968,-500.0,0.00022665,2]
[310669955,1704639123978,-426.75299214,0.00022665,2]
[310669956,1704639123987,-545.56549809,0.00022665,2]
[310669957,1704639123997,-500.0,0.00022665,2]
[310669958,1704639124007,-500.0,0.00022665,2]
[310669959,1704639124017,-500.0,0.00022665,2]
[310669960,1704639124027,-209.62868183,0.00022665,2]
[310669961,1704639124037,-500.0,0.00022665,2]
[310669962,1704639124047,-500.0,0.00022665,2]
[310669963,1704639124057,-500.0,0.00022665,2]
[310669964,1704639124067,-516.12408535,0.00022665,2]
[310669965,1704639124078,-500.0,0.00022665,2]
[310669966,1704639124088,-500.0,0.00022665,2]
[310669967,1704639124098,-638.97,0.00022665,2]
[310669968,1704639124110,-500.0,0.00022665,2]
[310669969,1704639124119,-500.0,0.00022665,2]
[310669970,1704639124129,-500.0,0.00022665,2]
[310669971,1704639124138,-500.0,0.00022665,2]
[310669972,1704639124148,-500.0,0.00022665,2]
[310669973,1704639124158,-500.0,0.00022665,2]
[310669974,1704639124167,-500.0,0.00022665,2]
[310669975,1704639124177,-500.0,0.00022665,2]
[310669976,1704639124187,-762.08,0.00022665,2]
[310669977,1704639124197,-500.0,0.00022665,2]
[310669978,1704639124206,-500.0,0.00022665,2]
[310669979,1704639124215,-513.3,0.00022665,2]
[310669980,1704639124225,-500.0,0.00022665,2]
[310669981,1704639124235,-500.0,0.00022665,2]
[310669982,1704639124244,-664.38,0.00022665,2]
[310669983,1704639124253,-500.0,0.00022665,2]
[310669984,1704639124263,-500.0,0.00022665,2]
[310669985,1704639124272,-500.0,0.00022665,2]
[310669986,1704639124282,-620.37,0.00022665,2]
[310669987,1704639124292,-925.51,0.00022665,2]
[310669988,1704639124301,-500.0,0.00022665,2]
[310669989,1704639124311,-508.40493217,0.00022665,2]
[310669990,1704639124321,-500.0,0.00022665,2]
[310669991,1704639124330,-515.26006466,0.00022665,2]
[310669992,1704639124339,-500.0,0.00022665,2]
[310669993,1704639124349,-500.0,0.00022665,2]
[310669994,1704639124360,-500.0,0.00022665,2]
[310669995,1704639124370,-1055.72,0.00022665,2]
[310669996,1704639124379,-500.0,0.00022665,2]
[310669997,1704639124389,-500.0,0.00022665,2]
[310669998,1704639124399,-500.0,0.00022665,2]
[310669999,1704639124408,-500.0,0.00022665,2]
[310670000,1704639124417,-500.0,0.00022665,2]
[310670001,1704639124428,-500.0,0.00022665,2]
[310670002,1704639124437,-861.28,0.00022665,2]
[310670003,1704639124447,-500.0,0.00022665,2]
[310670004,1704639124456,-500.0,0.00022665,2]
[310670005,1704639124467,-500.0,0.00022665,2]
[310670006,1704639124476,-500.0,0.00022665,2]
[310670007,1704639124485,-1112.9,0.00022665,2]
[310670008,1704639124494,-500.0,0.00022665,2]
[310670009,1704639124504,-500.0,0.00022665,2]
[310670010,1704639124513,-500.0,0.00022665,2]
[310670011,1704639124523,-1762.38,0.00022665,2]
[310670012,1704639124532,-500.0,0.00022665,2]
[310670013,1704639124541,-500.0,0.00022665,2]
[310670014,1704639124550,-500.0,0.00022665,2]
[310670015,1704639124560,-562.87577178,0.00022665,2]
[310670016,1704639124570,-1323.98,0.00022665,2]
[310670017,1704639124579,-1006.2,0.00022665,2]
[310670018,1704639124588,-553.87815018,0.00022665,2]
[310670019,1704639124598,-677.18,0.00022665,2]
[310670020,1704639124608,-1033.78,0.00022665,2]
[310670021,1704639124618,-500.0,0.00022665,2]
[310670022,1704639124627,-439.7,0.00022665,2]
[310670023,1704639124636,-500.0,0.00022665,2]
[310670024,1704639124645,-587.39,0.00022665,2]
[310670025,1704639124654,-807.29,0.00022665,2]
[310670026,1704639124664,-500.0,0.00022665,2]
[310670027,1704639124674,-500.0,0.00022665,2]
[310670028,1704639124683,-561.12,0.00022665,2]
[310670029,1704639124693,-551.85,0.00022665,2]
[310670030,1704639124702,-500.0,0.00022665,2]
[310670031,1704639124711,-1772.5,0.00022665,2]
[310670032,1704639124722,-500.0,0.00022665,2]
[310670033,1704639124732,-598.64,0.00022665,2]
[310670034,1704639124742,-500.0,0.00022665,2]
[310670035,1704639124751,-500.0,0.00022665,2]
[310670036,1704639124760,-500.0,0.00022665,2]
[310670037,1704639124770,-500.0,0.00022665,2]
[310670038,1704639124779,-500.0,0.00022665,2]
[310670039,1704639124791,-542.18045867,0.00022665,2]
[310670040,1704639124801,-500.0,0.00022665,2]
[310670041,1704639124810,-418.74,0.00022665,2]
[310670042,1704639124820,-500.0,0.00022665,2]
[310670043,1704639124829,-232.28,0.00022665,2]
[310670044,1704639124840,-500.0,0.00022665,2]
[310670045,1704639124849,-500.0,0.00022665,2]
[310670046,1704639124860,-500.0,0.00022665,2]
[310670047,1704639124870,-801.03,0.00022665,2]
[310670048,1704639124881,-1616.23,0.00022665,2]
[310670049,1704639124890,-500.0,0.00022665,2]
[310670050,1704639124900,-888.5,0.00022665,2]
[310670051,1704639124909,-500.0,0.00022665,2]
[310670052,1704639124919,-500.0,0.00022665,2]
[310670053,1704639124929,-500.0,0.00022665,2]
[310670054,1704639124939,-519.95343026,0.00022665,2]
[310670055,1704639124948,-500.0,0.00022666,2]
[310670056,1704639124958,-500.0,0.00022666,2]
[310670057,1704639124968,-500.0,0.00022666,2]
[310670058,1704639124977,-500.0,0.00022666,2]
[310670059,1704639125004,-500.0,0.00022666,2]
[310670060,1704639125013,-500.0,0.00022666,2]
[310670061,1704639125023,-666.53,0.00022666,2]
[310670062,1704639125033,-666.53,0.00022666,2]
[310670063,1704639125044,-500.0,0.00022666,2]
[310670064,1704639125054,-500.0,0.00022666,2]
[310670065,1704639125064,-500.0,0.00022666,2]
[310670066,1704639125074,-500.0,0.00022666,2]
[310670067,1704639125084,-500.0,0.00022666,2]
[310670068,1704639125095,-500.0,0.00022666,2]
[310670069,1704639125105,-500.0,0.00022666,2]
[310670070,1704639125115,-500.0,0.00022666,2]
[310670071,1704639125125,-500.0,0.00022666,2]
[310670072,1704639125134,-204.25,0.00022666,2]
[310670073,1704639125148,-505.33853869,0.00022666,2]
[310670074,1704639125159,-500.0,0.00022666,2]
[310670075,1704639125169,-200.04912236,0.00022666,2]
[310670076,1704639125179,-500.0,0.00022666,2]
[310670077,1704639125189,-500.0,0.00022666,2]
[310670078,1704639125200,-323.85568948,0.00022666,2]
[310670079,1704639125210,-918.4,0.00022666,2]
[310670080,1704639125220,-694.85,0.00022666,2]
[310670081,1704639125230,-500.0,0.00022666,2]
[310670082,1704639125240,-500.0,0.00022666,2]
[310670083,1704639125251,-500.0,0.00022666,2]
[310670084,1704639125261,-500.0,0.00022666,2]
[310670085,1704639125270,-500.0,0.00022666,2]
[310670086,1704639125280,-438.87463161,0.00022666,2]
[310670087,1704639125290,-460.15,0.00022666,2]
[310670088,1704639125300,-600.37,0.00022666,2]
[310670089,1704639125310,-500.0,0.00022666,2]
[310670090,1704639125320,-500.0,0.00022666,2]
[310670091,1704639125329,-500.0,0.00022666,2]
[310670092,1704639125339,-360.77709599,0.00022666,2]
[310670093,1704639125348,-500.0,0.00022666,2]
[310670094,1704639125360,-500.0,0.00022666,2]
[310670095,1704639125369,-500.0,0.00022666,2]
[310670096,1704639125379,-430.313926,0.00022666,2]
[310670097,1704639125388,-328.89,0.00022666,2]
[310670098,1704639125398,-500.0,0.00022666,2]
[310670099,1704639125407,-500.0,0.00022666,2]
[310670100,1704639125417,-500.0,0.00022666,2]
[310670101,1704639125426,-500.0,0.00022666,2]
[310670102,1704639125435,-523.8,0.00022666,2]
[310670103,1704639125445,-500.0,0.00022666,2]
[310670104,1704639125454,-500.0,0.00022666,2]
[310670105,1704639125464,-500.0,0.00022666,2]
[310670106,1704639125474,-500.0,0.00022666,2]
[310670107,1704639125483,-500.0,0.00022666,2]
[310670108,1704639125493,-500.0,0.00022666,2]
[310670109,1704639125503,-500.0,0.00022666,2]
[310670110,1704639125513,-500.0,0.00022666,2]
[310670111,1704639125523,-445.89,0.00022666,2]
[310670112,1704639125535,-1247.62,0.00022666,2]
[310670113,1704639125544,-500.0,0.00022666,2]
[310670114,1704639125556,-642.12115057,0.00022666,2]
[310670115,1704639125566,-500.0,0.00022666,2]
[310670116,1704639125576,-500.0,0.00022666,2]
[310670117,1704639125587,-500.0,0.00022666,2]
[310670118,1704639125597,-500.0,0.00022666,2]
[310670119,1704639125609,-500.0,0.00022666,2]
[310670120,1704639125620,-500.0,0.00022666,2]
[310670121,1704639125630,-500.0,0.00022666,2]
[310670122,1704639125641,-500.0,0.00022666,2]
[310670123,1704639125651,-500.0,0.00022666,2]
[310670124,1704639125662,-500.0,0.00022666,2]
[310670125,1704639125677,-500.0,0.00022666,2]
[310670126,1704639125687,-500.0,0.00022666,2]
[310670127,1704639125698,-500.0,0.00022666,2]
[310670128,1704639125708,-500.0,0.00022666,2]
[310670129,1704639125718,-500.0,0.00022666,2]
[310670130,1704639125728,-537.44780453,0.00022666,2]
[310670131,1704639125739,-500.0,0.00022666,2]
[310670132,1704639125749,-500.0,0.00022666,2]
[310670133,1704639125759,-500.0,0.00022666,2]
[310670134,1704639125769,-500.0,0.00022666,2]
[310670135,1704639125779,-500.0,0.00022666,2]
[310670136,1704639125789,-500.0,0.00022666,2]
[310670137,1704639125799,-500.0,0.00022666,2]
[310670138,1704639125810,-500.0,0.00022666,2]
[310670139,1704639125820,-500.0,0.00022666,2]
[310670140,1704639125830,-500.0,0.00022666,2]
[310670141,1704639125840,-340.16,0.00022666,2]
[310670142,1704639125850,-500.0,0.00022666,2]
[310670143,1704639125861,-500.0,0.00022666,2]
[310670144,1704639125873,-500.0,0.00022666,2]
[310670145,1704639125884,-540.2,0.00022666,2]
[310670146,1704639125894,-500.0,0.00022666,2]
[310670147,1704639125904,-292.47051405,0.00022666,2]
[310670148,1704639125914,-500.0,0.00022666,2]
[310670149,1704639125924,-500.0,0.00022666,2]
[310670150,1704639125934,-500.0,0.00022666,2]
[310670151,1704639125944,-500.0,0.00022666,2]
[310670152,1704639125955,-500.0,0.00022666,2]
[310670153,1704639125965,-579.92,0.00022666,2]
[310670154,1704639125974,-507.03,0.00022666,2]